bitfinex-derivatives/quotes_ETHF0:USTF0_20251223
["timestamp","ask_amount","ask_price","bid_price","bid_amount"]
[1766524142222,3.38306757,2961.0,2960.2,3.378]
[1766524142632,3.38741538,2961.0,2960.2,3.378]
[1766524142827,3.38741538,2961.0,2959.8,0.00506757]
[1766524143029,3.38741538,2961.0,2959.9,9.292]
[1766524144738,3.38741538,2961.0,2959.8,0.00506757]
[1766524144938,3.38741538,2961.0,2959.9,9.292]
[1766524145534,3.38741538,2961.0,2959.8,0.00506757]
[1766524145839,3.38741538,2961.0,2959.9,3.548]
[1766524146437,3.38741538,2961.0,2960.0,3.378]
[1766524147336,3.38741538,2961.0,2959.8,0.00506757]
[1766524147532,3.38741538,2961.0,2959.9,3.378]
[1766524149735,3.38741538,2961.0,2959.8,0.00506757]
[1766524149939,3.38741538,2961.0,2959.9,10.3926598]
[1766524151444,3.38121876,2960.9,2959.9,10.2236598]
[1766524151645,3.378,2961.4,2960.1,0.16899]
[1766524151944,3.378,2961.4,2960.2,3.378]
[1766524152150,3.378,2961.4,2960.2,3.54698]
[1766524152532,0.00506757,2961.1,2960.2,3.54698]
[1766524153539,3.38212624,2961.4,2960.2,3.54698]
[1766524153839,3.38212624,2961.4,2960.3,0.9316598]
[1766524154339,2.31691876,2961.3,2960.2,3.54698]
[1766524154742,0.00506757,2961.0,2960.2,3.54698]
[1766524155045,3.38306757,2961.0,2960.2,3.54698]
[1766524156045,3.378,2961.3,2960.2,1.70236124]
[1766524156247,3.378,2961.3,2960.8,1.84461876]
[1766524156845,3.378,2961.3,2960.6,3.378]
[1766524157045,0.00506757,2961.2,2960.6,5.22261876]
[1766524159949,0.00506757,2961.2,2960.6,1.84461876]
[1766524160145,0.00506757,2961.2,2960.7,3.378]
[1766524160743,0.00506757,2961.2,2960.5,5.913]
[1766524161056,0.00506757,2961.2,2960.4,3.378]
[1766524161745,0.00506757,2961.2,2960.2,0.16898]
[1766524161945,0.00506757,2961.2,2960.3,3.378]
[1766524164547,0.00506757,2961.2,2960.3,5.22261876]
[1766524167760,0.00506757,2961.2,2960.3,3.378]
[1766524167956,0.00506757,2961.2,2960.6,1.84461876]
[1766524171948,0.00506757,2961.2,2961.0,1.84461876]
[1766524172149,3.378,2961.7,2961.0,6.15466917]
[1766524172349,3.378,2961.8,2961.2,0.93205041]
[1766524172565,3.378,2961.7,2961.2,0.93205041]
[1766524173255,3.38134902,2961.7,2961.2,0.93711798]
[1766524173455,3.378,2961.9,2961.2,0.00841312]
[1766524173655,3.378,2961.9,2961.2,3.38641312]
[1766524174158,4.31005041,2961.9,2961.2,0.00841312]
[1766524174357,4.31005041,2961.9,2961.0,3.378]
[1766524175261,0.00506757,2961.7,2961.2,0.00506757]
[1766524175856,3.378,2961.6,2961.2,0.00506757]
[1766524183066,3.378,2961.6,2961.0,0.00420297]
[1766524184261,3.378,2961.6,2960.4,0.93205041]
[1766524184466,4.31005041,2961.6,2960.5,3.378]
[1766524185274,4.31005041,2961.6,2960.8,0.00506757]
[1766524186467,0.93205041,2961.4,2960.5,0.00415605]
[1766524186673,3.378,2961.3,2960.5,3.38215605]
[1766524187176,3.378,2961.3,2960.6,0.93205041]
[1766524187472,3.378,2961.3,2960.5,3.38215605]
[1766524187473,3.378,2961.3,2960.8,0.93205041]
[1766524188774,3.378,2961.3,2960.7,0.00506757]
[1766524191062,3.378,2961.3,2960.5,3.38215605]
[1766524192069,3.378,2961.3,2960.6,0.00506757]
[1766524192571,3.378,2961.3,2960.6,3.38306757]
[1766524192767,3.378,2961.3,2960.6,0.00506757]
[1766524194876,3.378,2961.3,2960.7,0.93205041]
[1766524195272,3.378,2961.3,2960.6,0.00506757]
[1766524196772,3.378,2961.3,2960.5,3.38215605]
[1766524197881,3.378,2961.3,2960.6,0.00337836]
[1766524201086,3.378,2961.4,2960.6,0.00337836]
[1766524201581,0.93205041,2961.2,2960.5,0.00415605]
[1766524201789,3.378,2961.1,2960.5,0.00415605]
[1766524203388,3.378,2961.1,2960.3,3.378]
[1766524204087,3.378,2961.1,2960.4,0.93205041]
[1766524204498,3.378,2961.1,2960.4,0.93457685]
[1766524206185,3.378,2961.1,2960.4,0.00252644]
[1766524206686,3.378,2961.1,2960.5,3.378]
[1766524210184,3.378,2961.1,2960.4,0.00252644]
[1766524210392,3.378,2961.1,2960.4,3.378]
[1766524211286,3.378,2961.1,2960.4,3.3817432]
[1766524214190,0.93205041,2960.6,2959.6,3.378]
[1766524214385,3.378,2960.5,2959.6,3.378]
[1766524215090,3.378,2960.5,2959.6,3.38204409]
[1766524215288,0.00506757,2961.7,2960.4,0.93205041]
[1766524215495,3.378,2961.6,2960.7,0.93205041]
[1766524215784,3.378,2961.6,2960.8,3.378]
[1766524216592,3.378,2961.6,2960.7,3.378]
[1766524216792,0.93205041,2961.5,2960.7,3.378]
[1766524217192,0.93205041,2961.5,2960.3,0.93205041]
[1766524217488,0.93205041,2961.5,2960.4,3.378]
[1766524218187,0.93205041,2961.3,2960.1,1.10104041]
[1766524218385,3.378,2961.6,2960.1,1.10104041]
[1766524218386,3.378,2961.2,2960.2,3.378]
[1766524218591,3.378,2961.2,2960.3,0.93205041]
[1766524218984,3.378,2961.2,2960.4,0.93205041]
[1766524219190,3.378,2961.2,2960.5,3.378]
[1766524219691,0.93711798,2961.7,2960.5,3.378]
[1766524219891,3.378,2961.6,2960.5,3.378]
[1766524220090,0.93205041,2961.5,2960.5,3.378]
[1766524220892,3.378,2961.6,2960.5,3.378]
[1766524221495,3.378,2961.6,2960.6,0.93205041]
[1766524222193,3.378,2961.6,2960.9,0.93205041]
[1766524222389,0.00506757,2961.7,2961.1,0.93205041]
[1766524222593,0.00506757,2961.7,2961.2,3.378]
[1766524223284,0.00506757,2961.7,2960.9,0.93205041]
[1766524223488,3.38306757,2961.7,2960.9,3.378]
[1766524224502,3.38306757,2961.7,2960.9,4.31005041]
[1766524228299,3.38306757,2961.7,2960.9,3.378]
[1766524231599,3.38306757,2961.7,2960.4,0.16898]
[1766524231908,3.38306757,2961.7,2960.5,12.275]
[1766524237706,3.38306757,2961.7,2960.7,0.16896]
[1766524237912,0.00506757,2961.7,2960.8,3.378]
[1766524238105,3.38201195,2961.9,2960.8,3.378]
[1766524238508,3.38201195,2961.9,2960.8,3.54695]
[1766524239100,0.00506757,2961.6,2961.1,0.00506757]
[1766524239304,0.00506757,2961.6,2961.2,3.378]
[1766524239610,7.57e-06,2961.6,2961.2,3.378]
[1766524239808,0.00401195,2961.9,2961.2,3.378]
[1766524240807,0.00506757,2961.8,2961.2,3.378]
[1766524242315,0.00401195,2961.9,2961.2,3.378]
[1766524243413,0.00506757,2961.8,2961.2,3.378]
[1766524244016,0.00506757,2961.8,2961.1,0.17400757]
[1766524244214,0.00506757,2961.8,2961.3,5.91]
[1766524248318,0.00506757,2961.8,2961.1,0.17400757]
[1766524248520,0.00506757,2961.8,2961.4,9.287]
[1766524249318,0.00506757,2961.8,2961.1,0.17400757]
[1766524249624,0.00506757,2961.8,2961.2,3.911]
[1766524250024,0.00506757,2961.8,2961.3,9.288]
[1766524251027,0.00506757,2961.8,2961.4,5.911]
[1766524251224,0.00506757,2961.8,2961.4,9.288]
[1766524252328,0.00506757,2961.8,2961.1,0.17400757]
[1766524252531,0.00506757,2961.8,2961.4,5.911]
[1766524252722,0.00506757,2961.8,2961.5,3.377]
[1766524254329,0.00506757,2961.8,2961.1,0.17400757]
[1766524254530,0.00506757,2961.8,2961.4,5.91]
[1766524255127,0.00506757,2961.8,962.44,1.16652545]
[1766524255331,0.00506757,2961.8,2960.9,0.17400757]
[1766524255630,0.00506757,2961.8,2961.0,9.287]
[1766524256025,0.00506757,2961.8,2961.1,3.377]
[1766524256225,0.00506757,2961.8,2961.2,0.00506757]
[1766524256626,0.00506757,2961.8,2961.0,3.377]
[1766524257631,0.00506757,2961.8,2961.1,0.00506757]
[1766524261023,0.00506757,2961.8,2961.2,0.17400757]
[1766524261224,5.898,2962.6,2961.5,0.17400757]
[1766524261435,3.377,2962.5,2961.3,3.377]
[1766524262237,0.00506757,2962.2,2961.3,3.377]
[1766524262537,3.38206757,2962.2,2961.3,3.377]
[1766524262729,3.38206757,2962.2,2961.4,0.17400757]
[1766524263430,3.38206757,2962.2,2961.3,3.377]
[1766524264735,3.38206757,2962.2,2961.3,3.55100757]
[1766524265232,3.38206757,2962.2,2961.4,0.17400757]
[1766524267641,3.38206757,2962.2,2961.1,0.00506757]
[1766524267842,3.38206757,2962.2,2961.2,3.377]
[1766524268341,3.38206757,2962.2,2961.2,3.55100757]
[1766524271350,3.38206757,2962.2,2961.2,0.17400757]
[1766524277949,3.38206757,2962.2,2961.2,3.55100757]
[1766524279947,3.38206757,2962.2,2961.2,0.17400757]
[1766524280143,3.38206757,2962.2,2961.3,3.377]
[1766524282953,3.38206757,2962.2,2961.2,0.17400757]
[1766524283252,3.38206757,2962.2,2961.3,3.377]
[1766524286551,0.00506757,2962.2,2961.3,3.377]
[1766524288250,3.377,2962.3,2961.3,3.377]
[1766524288463,0.0037919,2962.5,2961.4,0.93182704]
[1766524288647,3.377,2962.6,2961.5,8.444]
[1766524288847,3.377,2962.6,2961.6,7.856]
[1766524289457,0.00506757,2962.4,2961.6,7.856]
[1766524289848,0.00910495,2962.4,2961.6,7.856]
[1766524290456,0.00910495,2962.4,2961.7,5.91]
[1766524290654,0.00910495,2962.4,2961.8,3.377]
[1766524292752,0.00910495,2962.4,2961.7,0.93553324]
[1766524292959,0.00910495,2962.4,2961.8,9.286]
[1766524294360,3.377,2962.8,2962.1,0.93125848]
[1766524294557,3.377,2963.1,2962.2,3.377]
[1766524295362,0.00506757,2962.9,2962.2,3.377]
[1766524298865,0.0042123,2963.1,2962.5,0.93125848]
[1766524299164,3.377,2963.5,2962.6,3.377]
[1766524299758,0.00506757,2963.3,2962.8,0.00506757]
[1766524299959,0.00892091,2963.3,2962.8,0.00506757]
[1766524301758,4.30825848,2963.2,2961.9,0.16889]
[1766524301961,0.93125848,2962.7,2962.0,3.377]
[1766524302165,4.30825848,2962.9,2962.0,3.377]
[1766524302862,4.30825848,2962.9,2962.2,0.00506757]
[1766524304470,3.377,2962.9,2962.2,0.00506757]
[1766524304867,9.822,2963.2,2962.5,0.93125848]
[1766524305061,9.822,2963.2,2962.6,3.376]
[1766524305562,3.376,2963.2,2962.6,3.376]
[1766524307065,0.93125848,2963.1,2962.2,0.00506757]
[1766524307266,0.93125848,2963.1,2962.3,3.376]
[1766524307771,0.93125848,2962.9,2962.3,3.376]
[1766524308171,0.93125848,2963.1,2962.3,3.376]
[1766524309175,0.93125848,2963.1,2962.2,0.00506757]
[1766524309373,0.93125848,2963.1,2962.3,3.376]
[1766524310375,0.93125848,2963.1,2962.2,0.00506757]
[1766524310871,0.93125848,2963.1,2962.3,3.376]
[1766524311175,3.376,2963.2,2962.3,3.376]
[1766524311368,3.376,2963.2,2962.5,0.93125848]
[1766524311670,3.376,2963.2,2962.3,3.376]
[1766524311671,3.376,2963.2,2962.3,4.30725848]
[1766524312375,3.376,2963.2,2962.3,3.376]
[1766524313483,4.30725848,2963.2,2962.3,3.376]
[1766524315078,3.376,2963.2,2962.3,3.376]
[1766524318870,0.93125848,2963.1,2962.4,3.376]
[1766524319373,3.376,2963.2,2962.4,3.376]
[1766524320373,0.00892091,2963.3,2962.4,4.30725848]
[1766524320576,0.00892091,2963.3,2962.5,0.93125848]
[1766524320876,0.00892091,2963.3,2962.6,3.376]
[1766524321077,0.00892091,2963.3,2962.7,3.376]
[1766524321473,0.00892091,2963.3,2962.2,0.17393757]
[1766524321680,0.00892091,2963.3,2962.3,3.376]
[1766524322373,0.93125848,2962.6,2962.2,3.38106757]
[1766524322579,4.30725848,2962.8,2962.2,3.38106757]
[1766524322780,3.376,2962.8,2962.2,3.38106757]
[1766524323777,0.93125848,2962.3,2960.8,0.16895]
[1766524324081,0.93125848,2961.8,2960.9,3.376]
[1766524324480,3.376,2961.9,2960.9,3.376]
[1766524324781,0.00506757,2961.7,2961.1,0.00506757]
[1766524325776,0.93125848,2962.5,2961.3,0.93125848]
[1766524325987,7.75,2962.4,2961.3,0.93125848]
[1766524326280,0.93125848,2962.3,2961.2,3.376]
[1766524326475,41.73125848,2962.3,2961.2,3.376]
[1766524326784,0.00506757,2962.0,2961.2,3.376]
[1766524333573,0.00506757,2962.0,2961.1,0.00506757]
[1766524333775,0.00506757,2962.0,2961.1,3.38206757]
[1766524341085,4.59363248,2963.9,2961.1,3.38206757]
[1766524341288,3.377,2963.2,2961.1,3.55099757]
[1766524341487,6.437,2963.1,2961.1,3.55099757]
[1766524341686,40.8,2963.0,2961.1,3.55099757]
[1766524341882,3.377,2962.9,2961.1,3.55099757]
[1766524342083,0.00506757,2962.3,2961.1,3.55099757]
[1766524347389,0.00506757,2962.3,2961.1,0.17399757]
[1766524347591,0.00506757,2962.3,2961.2,8.412]
[1766524348393,0.00506757,2962.3,2961.1,8.61699757]
[1766524348394,3.377,2962.2,2961.3,3.377]
[1766524348599,3.377,2962.2,2961.1,0.00506757]
[1766524348895,3.377,2962.2,2961.2,3.377]
[1766524349883,0.93185009,2961.9,2961.2,3.377]
[1766524350094,4.30885009,2961.9,2961.2,3.377]
[1766524350789,0.93185009,2961.5,2960.9,0.00283447]
[1766524350998,0.93185009,2961.3,2960.5,3.377]
[1766524351298,4.30885009,2961.5,2960.5,3.377]
[1766524351890,4.30885009,2961.5,2960.8,0.00506757]
[1766524352389,4.30885009,2961.5,2960.8,3.38206757]
[1766524352996,0.93185009,2961.3,2960.8,0.00506757]
[1766524353197,0.93185009,2961.3,2960.6,0.00414407]
[1766524354096,3.377,2961.5,2960.7,0.00506757]
[1766524354688,40.8,2961.4,2960.7,0.00506757]
[1766524354887,40.8,2961.4,2960.6,0.00414407]
[1766524355797,40.8,2961.4,2960.7,0.00506757]
[1766524355987,40.8,2961.4,2960.6,3.38114407]
[1766524356987,40.8,2961.4,2960.7,0.00506757]
[1766524359694,47.259,2961.4,2960.6,3.38114407]
[1766524360093,47.259,2961.4,2960.0,0.169]
[1766524360998,47.259,2961.4,2960.0,0.17164079]
[1766524361596,47.259,2961.4,2960.1,3.378]
[1766524362702,47.259,2961.4,2960.0,0.00264079]
[1766524362895,47.259,2961.4,2960.0,3.38064079]
[1766524366301,40.8,2961.4,2960.0,3.38064079]
[1766524366499,3.378,2961.3,2960.1,1.10118747]
[1766524366703,9.855,2961.4,2960.3,0.16898]
[1766524367003,3.378,2961.4,2960.4,16.055]
[1766524368101,4.359,2961.6,2960.4,16.055]
[1766524368591,8.45106757,2962.3,2960.4,16.055]
[1766524368592,0.00506757,2962.3,2960.4,16.055]
[1766524368793,9.855,2962.2,2960.4,16.055]
[1766524371104,9.855,2962.2,2960.5,14.358]
[1766524371402,9.855,2962.2,2960.5,17.736]
[1766524372496,40.8,2962.1,2960.5,17.736]
[1766524372691,9.855,2962.2,2960.7,0.16896]
[1766524372898,9.855,2962.2,2960.8,3.378]
[1766524373100,50.655,2962.2,2960.9,5.917]
[1766524373303,9.855,2962.2,2960.9,6.84919747]
[1766524373996,9.855,2962.2,2960.9,5.917]
[1766524374398,3.378,2962.2,2961.1,0.16894]
[1766524374598,3.378,2962.2,2961.2,3.378]
[1766524374798,3.378,2962.2,2961.3,3.23]
[1766524376099,3.378,2962.2,2961.3,11.675]
[1766524380699,0.00506757,2962.3,2961.3,11.675]
[1766524381605,40.8,2962.9,2961.4,0.16892]
[1766524381606,3.377,2962.7,2961.4,0.16892]
[1766524381909,3.377,2962.7,2961.5,3.54591]
[1766524382707,1.62859739,2964.1,2961.8,0.00506757]
[1766524383006,2.42973987,2965.7,2961.8,0.00506757]
[1766524383007,0.16865,2966.1,2963.4,0.1688]
[1766524383212,44.177,2966.0,2963.7,0.16879]
[1766524383409,9.855,2965.9,2963.8,8.542]
[1766524383610,9.855,2965.9,2963.1,0.16882]
[1766524383809,0.00505842,2965.1,2963.2,50.559]
[1766524384005,0.00505842,2965.1,2963.1,0.1728888]
[1766524384212,3.377,2965.0,2963.1,0.1728888]
[1766524384506,3.377,2965.0,2963.2,12.075]
[1766524384712,3.377,2965.0,2963.8,0.00504625]
[1766524384913,3.377,2965.0,2963.9,9.293]
[1766524385208,3.377,2965.0,2964.0,2.864]
[1766524385414,3.377,2965.0,2964.0,0.812]
[1766524385604,3.377,2965.0,2964.0,0.4174]
[1766524388606,40.8,2964.9,2964.0,0.4174]
[1766524390013,0.00505842,2965.1,2964.0,0.4174]
[1766524390412,40.8,2965.0,2964.0,0.4174]
[1766524390909,0.00505842,2965.1,2964.0,0.4174]
[1766524391308,40.8,2965.0,2964.0,0.4174]
[1766524393704,40.8,2965.0,2964.1,9.288]
[1766524394108,0.00505842,2965.1,2964.1,9.288]
[1766524394515,40.80505842,2965.1,2964.1,9.288]
[1766524398822,40.80505842,2965.1,2964.2,5.911]
[1766524399013,40.80505842,2965.1,2964.3,3.375]
[1766524400714,40.80505842,2965.1,2964.4,1.164e-05]
[1766524400915,40.80505842,2965.1,2963.0,0.16882]
[1766524401221,6.525,2965.0,2963.0,0.16882]
[1766524401420,6.525,2965.0,2963.3,0.935]
[1766524401820,6.525,2965.0,2963.4,17.722]
[1766524404323,6.525,2965.0,2963.7,0.935]
[1766524404521,6.525,2965.0,2963.8,3.374]
[1766524404722,6.525,2965.0,2963.9,3.558]
[1766524409729,44.18005842,2965.1,2963.9,3.558]
[1766524412432,44.18005842,2965.1,2964.1,0.935]
[1766524412629,44.18005842,2965.1,2964.2,3.374]
[1766524412830,0.00505842,2965.1,2964.2,3.374]
[1766524413135,0.00505842,2965.1,2964.3,9.284]
[1766524413829,0.00505842,2965.1,2964.3,5.397]
[1766524414030,0.00505842,2965.1,2964.4,2.349]
[1766524414234,0.00505842,2965.1,2964.4,1.324]
[1766524414431,0.00505842,2965.1,2964.4,0.8115]
[1766524415537,0.00505842,2965.1,2964.5,0.935]
[1766524415727,0.00505842,2965.1,2964.6,3.374]
[1766524416426,0.00505842,2965.1,2964.6,2.9798]
[1766524422835,0.00505842,2965.1,2964.6,2.7827]
[1766524423535,0.00505842,2965.1,2964.5,0.935]
[1766524423738,0.00505842,2965.1,2964.6,3.374]
[1766524424437,10.87875285,2965.5,2964.6,3.374]
[1766524424636,0.90246897,2965.4,2964.6,3.374]
[1766524424836,41.70246897,2965.4,2964.6,3.374]
[1766524425039,40.8,2965.4,2964.6,3.374]
[1766524425642,0.00505842,2965.3,2964.7,0.00505842]
[1766524426336,0.00505842,2965.3,2964.9,0.935]
[1766524426536,40.8,2965.4,2964.9,4.309]
[1766524426935,40.67441768,2965.4,2965.1,0.935]
[1766524427134,0.00340285,2965.9,2965.2,3.374]
[1766524427336,0.00340285,2965.9,2965.2,0.00313888]
[1766524427534,0.93481127,2965.8,2965.3,3.374]
[1766524427734,0.93481127,2965.8,2965.3,2.5012]
[1766524427930,0.93481127,2965.8,2965.3,3.1208]
[1766524428241,40.8,2965.7,2965.3,0.935]
[1766524429240,0.93481127,2965.8,2965.3,0.935]
[1766524429645,40.80505842,2965.8,2965.3,0.935]
[1766524430841,0.92975285,2965.4,2964.7,3.374]
[1766524431041,0.92975285,2965.4,2964.0,0.92975285]
[1766524431236,0.92975285,2965.4,2964.3,0.00505842]
[1766524431542,0.92975285,2965.4,2964.4,3.374]
[1766524431740,0.92975285,2965.4,2964.4,3.37686505]
[1766524431942,0.92975285,2965.4,2964.6,0.00505842]
[1766524432146,0.92975285,2965.4,2964.7,3.374]
[1766524432338,0.92975285,2965.4,2964.6,0.00505842]
[1766524432643,0.92975285,2965.4,2964.7,3.374]
[1766524435237,40.8,2965.3,2964.7,3.374]
[1766524436338,40.8,2965.3,2964.6,0.00505842]
[1766524436653,40.8,2965.3,2964.4,0.00286505]
[1766524436654,41.72975285,2965.3,2964.7,3.374]
[1766524436944,41.72975285,2965.3,2964.4,0.00286505]
[1766524437145,41.72975285,2965.3,2964.5,3.374]
[1766524438554,41.72975285,2965.3,2964.5,5.908]
[1766524438850,41.72975285,2965.3,2964.4,0.00286505]
[1766524439148,41.72975285,2965.3,2964.5,3.374]
[1766524439348,41.72975285,2965.3,2964.4,0.00286505]
[1766524439746,40.8,2965.3,2964.5,3.374]
[1766524440451,40.8,2965.3,2964.4,0.00286505]
[1766524440850,40.8,2965.3,2964.5,3.374]
[1766524441151,40.8,2965.3,2964.6,3.374]
[1766524441350,40.8,2965.3,2964.4,0.00286505]
[1766524441553,40.8,2965.3,2964.5,3.374]
[1766524441950,40.8,2965.3,2964.6,3.374]
[1766524442456,3.374,2965.5,2964.6,4.30375285]
[1766524442856,44.174,2965.5,2964.6,4.30375285]
[1766524443753,0.00505842,2965.8,2964.9,0.92975285]
[1766524443953,0.00505842,2965.8,2965.0,3.374]
[1766524444160,40.80505842,2965.8,2965.0,3.374]
[1766524445858,40.80505842,2965.8,2964.7,0.92975285]
[1766524446056,40.80505842,2965.8,2964.9,4.531]
[1766524446662,40.80505842,2965.8,2964.7,0.92975285]
[1766524446847,5.2623,2966.3,2965.1,0.92975285]
[1766524447050,0.92975285,2966.9,2965.6,0.92975285]
[1766524447250,0.92975285,2966.9,2965.7,3.373]
[1766524447549,0.92975285,2966.9,2965.8,0.645]
[1766524447952,0.00505842,2966.6,2966.1,0.00505842]
[1766524448255,0.00505842,2966.6,2966.2,3.373]
[1766524448651,0.00427301,2966.9,2966.2,4.30275285]
[1766524448844,0.92975285,2967.4,2966.2,4.30275285]
[1766524448845,8.434,2967.9,2966.4,0.92975285]
[1766524449050,0.92975285,2967.7,2966.5,2.697]
[1766524449251,0.92975285,2967.5,2966.2,0.92975285]
[1766524449457,50.871,2967.4,2966.3,6.193]
[1766524449651,0.00505842,2967.1,2966.3,6.193]
[1766524450052,0.00742987,2967.1,2966.3,6.19590178]
[1766524451247,0.92975285,2967.0,2966.3,0.00290178]
[1766524451459,0.92975285,2967.0,2966.1,0.00505842]
[1766524451460,0.92975285,2966.7,2966.1,0.00505842]
[1766524452161,0.00742987,2967.1,2966.1,0.00505842]
[1766524452460,0.00742987,2967.1,2966.1,0.00932516]
[1766524452956,0.00742987,2967.1,2966.2,0.92975285]
[1766524453163,0.00742987,2967.1,2966.3,3.373]
[1766524454462,0.00742987,2967.1,2966.2,0.92975285]
[1766524454962,0.00742987,2967.1,2966.3,0.958]
[1766524455158,0.00742987,2967.1,2966.4,3.373]
[1766524455363,0.00742987,2967.1,2966.4,4.30275285]
[1766524456262,3.373,2967.3,2966.6,0.92975285]
[1766524456464,0.92975285,2967.9,2966.7,3.373]
[1766524456761,0.92975285,2967.7,2966.7,3.373]
[1766524457068,40.8,2967.6,2966.7,3.373]
[1766524457260,0.00505842,2967.4,2966.7,3.373]
[1766524457660,0.00408632,2967.6,2966.6,0.92975285]
[1766524457867,0.00408632,2967.6,2966.8,4.705]
[1766524458061,40.80408632,2967.6,2966.8,4.705]
[1766524458666,0.00505842,2967.5,2966.8,4.705]
[1766524458867,0.00505842,2967.5,2966.3,0.16864]
[1766524459066,0.00505842,2967.5,2966.5,0.92975285]
[1766524459565,0.00505842,2967.5,2966.6,9.277]
[1766524460565,0.00505842,2967.5,2966.7,0.92975285]
[1766524460966,0.00505842,2967.5,2966.6,9.277]
[1766524461560,0.93481127,2967.5,2965.6,0.16868]
[1766524461765,4.30681127,2967.5,2966.2,2.19175285]
[1766524461966,3.37705842,2967.5,2966.3,1.163]
[1766524462162,0.92975285,2967.4,2966.3,4.535]
[1766524462670,0.92975285,2967.4,2966.2,1.262]
[1766524462864,0.92975285,2967.4,2966.3,9.276]
[1766524463364,0.92975285,2967.4,2966.3,10.20575285]
[1766524463670,3.37705842,2967.5,2966.3,10.20575285]
[1766524463866,3.37705842,2967.5,2966.5,0.92975285]
[1766524464066,3.37705842,2967.5,2966.6,3.372]
[1766524465571,3.37705842,2967.5,2966.7,0.92975285]
[1766524467674,0.00408632,2967.6,2966.6,3.372]
[1766524467875,0.00408632,2967.6,2966.6,4.30175285]
[1766524468780,0.00505842,2967.4,2966.6,4.30175285]
[1766524469179,0.00408632,2967.6,2966.8,0.92975285]
[1766524469482,0.00408632,2967.6,2966.9,8.692]
[1766524469972,0.00408632,2967.6,2967.0,3.371]
[1766524470173,0.00745864,2967.6,2967.0,3.371]
[1766524471579,6.703,2967.8,2967.0,3.371]
[1766524472079,0.92975285,2967.7,2966.6,1.262]
[1766524472280,0.92975285,2967.5,2966.7,9.274]
[1766524472474,0.93336027,2967.5,2966.7,9.274]
[1766524473673,0.00360742,2967.5,2966.7,9.274]
[1766524473879,0.00360742,2967.5,2966.6,1.262]
[1766524474088,0.00360742,2967.5,2966.7,9.274]
[1766524478482,0.00360742,2967.5,2966.4,1.262]
[1766524478683,0.00360742,2967.5,2966.5,9.274]
[1766524479891,0.00360742,2967.5,2966.4,1.262]
[1766524480077,0.00360742,2967.5,2966.5,9.273]
[1766524480286,40.8,2967.9,2966.5,9.273]
[1766524480879,40.8,2967.9,2966.3,1.09691405]
[1766524481090,40.8,2967.9,2966.6,5.902]
[1766524481290,40.80339787,2967.9,2966.7,3.371]
[1766524484092,40.80339787,2967.9,2966.8,5.606]
[1766524484293,40.80339787,2967.9,2966.9,3.371]
[1766524487089,40.80339787,2967.9,2966.8,5.606]
[1766524487296,40.80339787,2967.9,2966.9,9.273]
[1766524488800,47.57239787,2967.9,2966.9,9.273]
[1766524489596,40.80339787,2967.9,2966.6,0.92827405]
[1766524489802,3.371,2968.6,2966.6,2.0251681]
[1766524489999,3.371,2968.5,2966.6,1.09689405]
[1766524490191,40.8,2968.4,2966.7,12.285]
[1766524490391,6.775,2968.3,2966.7,12.285]
[1766524490693,6.775,2968.3,2966.8,17.701]
[1766524490901,6.7776293,2968.3,2966.8,17.701]
[1766524494303,6.7776293,2968.3,2966.6,1.09689405]
[1766524494505,6.7776293,2968.3,2966.9,5.902]
[1766524494702,6.7776293,2968.3,2967.0,3.371]
[1766524495504,3.371,2968.2,2967.0,3.371]
[1766524495707,40.8,2968.1,2967.0,3.371]
[1766524496605,3.371,2968.2,2967.0,3.371]
[1766524497106,44.171,2968.2,2967.0,3.371]
[1766524500110,44.171,2968.2,2967.1,9.129]
[1766524500709,0.0026293,2968.3,2967.3,0.16858]
[1766524501206,0.0026293,2968.3,2967.4,2.124]
[1766524501405,0.0026293,2968.3,2967.3,0.16858]
[1766524501713,0.0026293,2968.3,2967.4,9.272]
[1766524503807,0.0026293,2968.3,2966.6,12.56857787]
[1766524504012,0.0026293,2968.3,2966.7,18.96]
[1766524504808,0.0026293,2968.3,2966.7,19.12862]
[1766524505017,0.0026293,2968.3,2967.2,0.16859]
[1766524505310,0.0026293,2968.3,2967.3,3.933]
[1766524505510,0.0026293,2968.3,2967.4,3.37]
[1766524507118,3.37,2968.5,2967.4,3.37]
[1766524507418,3.37,2968.5,2967.7,0.00505842]
[1766524507718,3.37,2968.5,2967.8,9.273]
[1766524508218,3.37260025,2968.5,2967.8,9.273]
[1766524508414,3.37260025,2968.5,2967.7,0.00505842]
[1766524508619,3.37260025,2968.5,2967.8,3.37]
[1766524508919,0.00505842,2968.4,2967.2,0.16859]
[1766524509320,0.00505842,2968.4,2966.8,0.92827405]
[1766524509514,0.00505842,2968.4,2966.9,3.68905846]
[1766524509816,0.00505842,2968.4,2967.0,9.272]
[1766524510119,0.00505842,2968.4,2967.4,0.00505842]
[1766524510318,0.00505842,2968.4,2967.4,3.37505842]
[1766524513316,0.00505842,2968.4,2967.4,0.00505842]
[1766524515819,0.00505842,2968.4,2966.7,0.16862]
[1766524516020,10.165,2968.3,2967.0,0.01011688]
[1766524516320,10.165,2968.3,2967.1,3.37]
[1766524516919,10.165,2968.3,2967.4,0.00505842]
[1766524525514,10.165,2968.3,2967.1,3.37]
[1766524525824,10.165,2968.3,2967.2,0.01011688]
[1766524526423,10.165,2968.3,2967.5,0.00505842]
[1766524526630,10.165,2968.3,2967.1,3.37]
[1766524526927,10.165,2968.3,2967.3,0.01011688]
[1766524527716,10.165,2968.3,2967.5,0.00505842]
[1766524528329,10.165,2968.3,2967.1,3.37]